fUST/lending_fUST_20260504
["ID","MTS","AMOUNT","RATE_DAILY","PERIOD"]
[421541220,1777839045000,-500.0,0.00016712,2]
[421541223,1777839045000,-3394.54,0.00016712,2]
[421541217,1777839045000,-1086.56,0.00016712,2]
[421541219,1777839045000,-500.0,0.00016712,2]
[421541235,1777839045000,-500.0,0.00016712,2]
[421541218,1777839045000,-1256.86,0.00016712,2]
[421541231,1777839045000,-1186.93,0.00016712,2]
[421541248,1777839045000,-554.27,0.00016712,2]
[421541230,1777839045000,-500.0,0.00016712,2]
[421541234,1777839045000,-500.0,0.00016712,2]
[421541237,1777839045000,-500.0,0.00016712,2]
[421541239,1777839045000,-500.0,0.00016712,2]
[421541233,1777839045000,-748.88,0.00016712,2]
[421541238,1777839045000,-1016.57,0.00016712,2]
[421541240,1777839045000,-622.9299229,0.00016712,2]
[421541232,1777839045000,-500.0,0.00016712,2]
[421541241,1777839045000,-567.36,0.00016712,2]
[421541243,1777839045000,-500.0,0.00016712,2]
[421541242,1777839045000,-500.0,0.00016712,2]
[421541253,1777839045000,-513.16,0.00016712,2]
[421541245,1777839045000,-540.95,0.00016712,2]
[421541227,1777839045000,-500.0,0.00016712,2]
[421541236,1777839045000,-2124.23,0.00016712,2]
[421541228,1777839045000,-1000.0,0.00016712,2]
[421541186,1777839045000,-500.0,0.00016712,2]
[421541210,1777839045000,-500.0,0.00016712,2]
[421541184,1777839045000,-2435.69,0.00016712,2]
[421541188,1777839045000,-500.0,0.00016712,2]
[421541185,1777839045000,-570.35,0.00016712,2]
[421541187,1777839045000,-1650.1,0.00016712,2]
[421541190,1777839045000,-500.0,0.00016712,2]
[421541189,1777839045000,-500.0,0.00016712,2]
[421541198,1777839045000,-500.0,0.00016712,2]
[421541202,1777839045000,-695.24,0.00016712,2]
[421541200,1777839045000,-2121.29,0.00016712,2]
[421541199,1777839045000,-500.0,0.00016712,2]
[421541193,1777839045000,-1313.89,0.00016712,2]
[421541201,1777839045000,-548.63,0.00016712,2]
[421541194,1777839045000,-936.25,0.00016712,2]
[421541192,1777839045000,-500.0,0.00016712,2]
[421541191,1777839045000,-2825.02,0.00016712,2]
[421541195,1777839045000,-500.0,0.00016712,2]
[421541196,1777839045000,-500.0,0.00016712,2]
[421541197,1777839045000,-777.61,0.00016712,2]
[421541204,1777839045000,-2804.91,0.00016712,2]
[421541203,1777839045000,-500.0,0.00016712,2]
[421541205,1777839045000,-1342.18,0.00016712,2]
[421541212,1777839045000,-1367.11,0.00016712,2]
[421541213,1777839045000,-641.78,0.00016712,2]
[421541214,1777839045000,-500.0,0.00016712,2]
[421541206,1777839045000,-500.0,0.00016712,2]
[421541207,1777839045000,-500.0,0.00016712,2]
[421541208,1777839045000,-2405.61,0.00016712,2]
[421541209,1777839045000,-745.05,0.00016712,2]
[421541211,1777839045000,-1923.02,0.00016712,2]
[421541226,1777839045000,-500.0,0.00016712,2]
[421541247,1777839045000,-5643.67,0.00016712,2]
[421541275,1777839045000,-500.0,0.00016712,2]
[421541244,1777839045000,-500.0,0.00016712,2]
[421541293,1777839045000,-5714.47,0.00016712,2]
[421541286,1777839045000,-500.0,0.00016712,2]
[421541281,1777839045000,-3822.18,0.00016712,2]
[421541287,1777839045000,-856.73,0.00016712,2]
[421541288,1777839045000,-500.0,0.00016712,2]
[421541283,1777839045000,-500.0,0.00016712,2]
[421541285,1777839045000,-4449.36,0.00016712,2]
[421541290,1777839045000,-1783.53,0.00016712,2]
[421541284,1777839045000,-517.42,0.00016712,2]
[421541289,1777839045000,-500.0,0.00016712,2]
[421541294,1777839045000,-500.0,0.00016712,2]
[421541305,1777839045000,-5657.48,0.00016712,2]
[421541306,1777839045000,-500.0,0.00016712,2]
[421541304,1777839045000,-555.33,0.00016712,2]
[421541295,1777839045000,-500.0,0.00016712,2]
[421541296,1777839045000,-500.0,0.00016712,2]
[421541297,1777839045000,-500.0,0.00016712,2]
[421541298,1777839045000,-500.0,0.00016712,2]
[421541302,1777839045000,-15098.74,0.00016712,2]
[421541301,1777839045000,-500.0,0.00016712,2]
[421541300,1777839045000,-500.0,0.00016712,2]
[421541303,1777839045000,-2782.12,0.00016712,2]
[421541308,1777839045000,-2871.71,0.00016712,2]
[421541307,1777839045000,-500.0,0.00016712,2]
[421541310,1777839045000,-500.0,0.00016712,2]
[421541309,1777839045000,-636.91,0.00016712,2]
[421541311,1777839045000,-500.0,0.00016712,2]
[421541312,1777839045000,-661.9,0.00016712,2]
[421541250,1777839045000,-698.42,0.00016712,2]
[421541292,1777839045000,-634.17363662,0.00016712,2]
[421541291,1777839045000,-500.0,0.00016712,2]
[421541299,1777839045000,-500.0,0.00016712,2]
[421541278,1777839045000,-528.11,0.00016712,2]
[421541254,1777839045000,-500.0,0.00016712,2]
[421541251,1777839045000,-500.0,0.00016712,2]
[421541246,1777839045000,-500.0,0.00016712,2]
[421541249,1777839045000,-532.25,0.00016712,2]
[421541255,1777839045000,-785.19,0.00016712,2]
[421541267,1777839045000,-3010.33,0.00016712,2]
[421541257,1777839045000,-500.0,0.00016712,2]
[421541260,1777839045000,-500.0,0.00016712,2]
[421541252,1777839045000,-500.0,0.00016712,2]
[421541266,1777839045000,-2185.3,0.00016712,2]
[421541259,1777839045000,-500.0,0.00016712,2]
[421541282,1777839045000,-500.0,0.00016712,2]
[421541261,1777839045000,-2139.64,0.00016712,2]
[421541256,1777839045000,-776.54,0.00016712,2]
[421541264,1777839045000,-500.0,0.00016712,2]
[421541258,1777839045000,-500.0,0.00016712,2]
[421541277,1777839045000,-500.0,0.00016712,2]
[421541276,1777839045000,-500.0,0.00016712,2]
[421541274,1777839045000,-3296.93,0.00016712,2]
[421541265,1777839045000,-1812.59,0.00016712,2]
[421541271,1777839045000,-1241.69,0.00016712,2]
[421541272,1777839045000,-500.0,0.00016712,2]
[421541268,1777839045000,-500.0,0.00016712,2]
[421541270,1777839045000,-500.0,0.00016712,2]
[421541280,1777839045000,-1130.22,0.00016712,2]
[421541279,1777839045000,-500.0,0.00016712,2]
[421541269,1777839045000,-643.26378416,0.00016712,2]
[421541263,1777839045000,-500.0,0.00016712,2]
[421541262,1777839045000,-10928.45,0.00016712,2]
[421541273,1777839045000,-972.8,0.00016712,2]
[421541319,1777839046000,-500.0,0.00016712,2]
[421541318,1777839046000,-500.0,0.00016712,2]
[421541317,1777839046000,-4554.17,0.00016712,2]
[421541313,1777839046000,-532.7,0.00016712,2]
[421541316,1777839046000,-500.0,0.00016712,2]
[421541314,1777839046000,-13200.89,0.00016712,2]
[421541315,1777839046000,-500.0,0.00016712,2]
[421541320,1777839046000,-508.75,0.00016712,2]
[421541323,1777839046000,-452.05892798,0.00016712,2]
[421541322,1777839046000,-558.67,0.00016712,2]
[421541327,1777839046000,-500.0,0.00016437,2]
[421541326,1777839046000,-500.0,0.00016437,2]
[421541328,1777839046000,-500.0,0.00016437,2]
[421541321,1777839046000,-989.21,0.00016712,2]
[421541345,1777839047000,-151.0,0.00016438,2]
[421541346,1777839047000,-151.0,0.00016438,2]
[421541355,1777839047000,-151.0,0.00016438,2]
[421541349,1777839047000,-151.0,0.00016438,2]
[421541350,1777839047000,-151.0,0.00016438,2]
[421541351,1777839047000,-151.0,0.00016438,2]
[421541344,1777839047000,-151.0,0.00016438,2]
[421541347,1777839047000,-151.0,0.00016438,2]
[421541353,1777839047000,-151.0,0.00016438,2]
[421541352,1777839047000,-151.0,0.00016438,2]
[421541356,1777839047000,-291.058122,0.00016438,2]
[421541359,1777839047000,-1178.86711503,0.00016712,2]
[421541358,1777839047000,-544.71,0.00016712,2]
[421541348,1777839047000,-151.0,0.00016438,2]
[421541354,1777839047000,-151.0,0.00016438,2]
[421541342,1777839047000,-500.0,0.00016437,2]
[421541343,1777839047000,-732.66,0.00016438,2]
[421541339,1777839047000,-500.0,0.00016437,2]
[421541340,1777839047000,-500.0,0.00016437,2]
[421541336,1777839047000,-500.0,0.00016437,2]
[421541335,1777839047000,-500.0,0.00016437,2]
[421541341,1777839047000,-500.0,0.00016437,2]
[421541338,1777839047000,-500.0,0.00016437,2]
[421541337,1777839047000,-500.0,0.00016437,2]
[421541333,1777839047000,-77.59888354,0.00016437,2]
[421541334,1777839047000,-500.0,0.00016437,2]
[421541332,1777839047000,-422.40111646,0.00016437,2]
[421541329,1777839047000,-500.0,0.00016437,2]
[421541330,1777839047000,-500.0,0.00016437,2]
[421541331,1777839047000,-500.0,0.00016437,2]
[421541361,1777839047000,-818.33,0.00016712,2]
[421541360,1777839047000,-8501.71288497,0.00016712,2]
[421541373,1777839047000,-500.0,0.00016712,2]
[421541366,1777839047000,-555.36787415,0.00016712,2]
[421541365,1777839047000,-500.0,0.00016712,2]
[421541391,1777839047000,-500.0,0.00016712,2]
[421541389,1777839047000,-500.0,0.00016712,2]
[421541390,1777839047000,-500.0,0.00016712,2]
[421541392,1777839047000,-990.59,0.00016712,2]
[421541393,1777839047000,-819.99,0.00016712,2]
[421541385,1777839047000,-500.0,0.00016712,2]
[421541383,1777839047000,-500.0,0.00016712,2]
[421541386,1777839047000,-1187.63,0.00016712,2]
[421541394,1777839047000,-869.68860939,0.00016712,2]
[421541387,1777839047000,-1177.29,0.00016712,2]
[421541384,1777839047000,-890.99,0.00016712,2]
[421541377,1777839047000,-580.29,0.00016712,2]
[421541379,1777839047000,-500.0,0.00016712,2]
[421541376,1777839047000,-4989.72,0.00016712,2]
[421541388,1777839047000,-807.09,0.00016712,2]
[421541372,1777839047000,-914.91,0.00016712,2]
[421541362,1777839047000,-500.0,0.00016712,2]
[421541378,1777839047000,-500.0,0.00016712,2]
[421541357,1777839047000,-47.94107202,0.00016712,2]
[421541368,1777839047000,-500.0,0.00016712,2]
[421541367,1777839047000,-500.0,0.00016712,2]
[421541364,1777839047000,-500.0,0.00016712,2]
[421541370,1777839047000,-878.28,0.00016712,2]
[421541363,1777839047000,-500.0,0.00016712,2]
[421541380,1777839047000,-500.0,0.00016712,2]
[421541382,1777839047000,-500.0,0.00016712,2]
[421541369,1777839047000,-4435.08,0.00016712,2]
[421541371,1777839047000,-500.0,0.00016712,2]
[421541375,1777839047000,-5368.54,0.00016712,2]
[421541374,1777839047000,-500.0,0.00016712,2]
[421541381,1777839047000,-500.0,0.00016712,2]
[421541496,1777840011000,157.68724466,0.00018891,120]
[421541600,1777840232000,-248.60296465,0.00016163,2]
[421541606,1777840232000,-362.20788376,0.00016163,2]
[421541589,1777840232000,-151.5,0.00016163,2]
[421541591,1777840232000,-500.0,0.00016163,2]
[421541585,1777840232000,-500.0,0.00016163,2]
[421541587,1777840232000,-151.5,0.00016163,2]
[421541604,1777840232000,-500.0,0.00016163,2]
[421541608,1777840232000,-607.94302746,0.000162,2]
[421541617,1777840232000,-500.0,0.00016237,2]
[421541621,1777840232000,-500.0,0.00016237,2]
[421541612,1777840232000,-314.60562884,0.000162,3]
[421541623,1777840232000,-456.04825958,0.00016237,2]
[421541625,1777840232000,-500.0,0.00016237,2]
[421541615,1777840232000,-303.46113678,0.000162,3]
[421541610,1777840232000,-201.44100337,0.000162,3]
[421541626,1777840232000,-500.0,0.00016237,2]
[421541602,1777840232000,-500.0,0.00016163,2]
[421541619,1777840232000,-169.55517653,0.00016237,2]
[421541593,1777840232000,-275.2047303,0.00016163,2]
[421541556,1777840232000,-1000.0,0.00013699,2]
[421541598,1777840232000,-500.0,0.00016163,2]
[421541630,1777840232000,-265.18590643,0.00016237,2]
[421541553,1777840232000,-4754.06614565,0.00013193,2]
[421541555,1777840232000,-249.38040937,0.00013327,2]
[421541558,1777840232000,-1000.0,0.00014831,2]
[421541562,1777840232000,-252.645494,0.00015068,2]
[421541564,1777840232000,-294.26888306,0.00015327,2]
[421541566,1777840232000,-607.94302746,0.000155,2]
[421541569,1777840232000,-607.94302746,0.000157,2]
[421541571,1777840232000,-160.0,0.00015846,2]
[421541573,1777840232000,-160.0,0.00015847,2]
[421541568,1777840232000,-456.159554,0.00015567,2]
[421541579,1777840232000,-607.94302746,0.000159,2]
[421541575,1777840232000,-442.0,0.00015858,2]
[421541577,1777840232000,-185.0,0.00015858,2]
[421541581,1777840232000,-607.94302746,0.00016,2]
[421541596,1777840232000,-500.0,0.00016163,2]
[421541595,1777840232000,-279.85397405,0.00016163,2]
[421541583,1777840232000,-192.40120149,0.00016163,2]
[421541613,1777840232000,-285.23608989,0.000162,3]
[421541560,1777840232000,-213.749435,0.00014963,2]
[421541632,1777840232000,-500.0,0.00016237,2]
[421541680,1777840232000,-500.0,0.00016237,2]
[421541678,1777840232000,-500.0,0.00016237,2]
[421541668,1777840232000,-500.0,0.00016237,2]
[421541688,1777840232000,-500.0,0.00016237,2]
[421541694,1777840232000,-500.0,0.00016237,2]
[421541701,1777840232000,-500.0,0.00016237,2]
[421541686,1777840232000,-500.0,0.00016237,2]
[421541696,1777840232000,-500.0,0.00016237,2]
[421541672,1777840232000,-500.0,0.00016237,2]
[421541697,1777840232000,-500.0,0.00016237,2]
[421541684,1777840232000,-500.0,0.00016237,2]
[421541703,1777840232000,-500.0,0.00016237,2]
[421541690,1777840232000,-500.0,0.00016237,2]
[421541712,1777840232000,-2817.85544935,0.00016238,2]
[421541707,1777840232000,-36835.94418804,0.00016238,2]
[421541705,1777840232000,-500.0,0.00016237,2]
[421541710,1777840232000,-300.5169114,0.00016238,2]
[421541628,1777840232000,-500.0,0.00016237,2]
[421541692,1777840232000,-491.25409752,0.00016237,2]
[421541676,1777840232000,-500.0,0.00016237,2]
[421541699,1777840232000,-500.0,0.00016237,2]
[421541670,1777840232000,-500.0,0.00016237,2]
[421541636,1777840232000,-500.0,0.00016237,2]
[421541638,1777840232000,-500.0,0.00016237,2]
[421541644,1777840232000,-500.0,0.00016237,2]
[421541642,1777840232000,-500.0,0.00016237,2]
[421541640,1777840232000,-500.0,0.00016237,2]
[421541646,1777840232000,-500.0,0.00016237,2]
[421541635,1777840232000,-500.0,0.00016237,2]
[421541648,1777840232000,-500.0,0.00016237,2]
[421541674,1777840232000,-197.1809845,0.00016237,2]
[421541651,1777840232000,-500.0,0.00016237,2]
[421541654,1777840232000,-500.0,0.00016237,2]
[421541656,1777840232000,-500.0,0.00016237,2]
[421541659,1777840232000,-500.0,0.00016237,2]
[421541661,1777840232000,-500.0,0.00016237,2]
[421541663,1777840232000,-500.0,0.00016237,2]
[421541664,1777840232000,-500.0,0.00016237,2]
[421541666,1777840232000,-500.0,0.00016237,2]
[421541682,1777840232000,-500.0,0.00016237,2]
[421541652,1777840232000,-500.0,0.00016237,2]
[421541715,1777840233000,-637.92171028,0.00016238,2]
[421542073,1777840243000,-300.0,0.00016162,2]
[421542072,1777840243000,-300.0,0.00016162,2]
[421542075,1777840243000,-4072.36987339,0.00016238,2]
[421542074,1777840243000,-15074.1178605,0.00016238,2]
[421542087,1777840246000,-2093.69217357,0.00016238,2]
[421542088,1777840251000,1000.0,0.0001,2]
[421542090,1777840268000,589.83851533,7.857e-05,2]
[421542187,1777841432000,-1721.74895127,0.0001,2]
[421542185,1777841432000,-300.0,9.999e-05,2]
[421542179,1777841432000,-5000.0,9.411e-05,2]
[421542183,1777841432000,-244.00048373,9.507e-05,2]
[421542181,1777841432000,-553.0,9.506e-05,2]
[421542351,1777841440000,-300.0,0.00010199,2]
[421542349,1777841440000,-300.0,0.00010199,2]
[421542352,1777841440000,-300.0,0.00010199,2]
[421542350,1777841440000,-300.0,0.00010199,2]
[421542347,1777841440000,-300.0,0.00010199,2]
[421542356,1777841440000,-300.0,0.00010199,2]
[421542355,1777841440000,-300.0,0.00010199,2]
[421542354,1777841440000,-300.0,0.00010199,2]
[421542344,1777841440000,-4957.40140149,0.0001,2]
[421542345,1777841440000,-300.0,0.00010199,2]
[421542341,1777841440000,-1462.748,9.9e-05,2]
[421542342,1777841440000,-3297.35962132,9.9e-05,2]
[421542353,1777841440000,-300.0,0.00010199,2]
[421542343,1777841440000,-239.89237868,9.9e-05,2]
[421542358,1777841440000,-300.0,0.00010199,2]
[421542365,1777841440000,-178.0,0.00012099,2]
[421542369,1777841440000,-1000.0,0.00013699,2]
[421542368,1777841440000,-500.0,0.00013698,2]
[421542373,1777841440000,-364.47192399,0.00014275,2]
[421542370,1777841440000,-213.749435,0.00013699,2]
[421542372,1777841440000,-2522.34927247,0.00014175,2]
[421542366,1777841440000,-210.06473495,0.00013093,2]
[421542367,1777841440000,-331.84065787,0.00013507,2]
[421542371,1777841440000,-1000.0,0.00013699,2]
[421542359,1777841440000,-300.0,0.00010199,2]
[421542362,1777841440000,-314.20834261,0.00010999,2]
[421542363,1777841440000,-105.79165739,0.00010999,2]
[421542357,1777841440000,-300.0,0.00010199,2]
[421542361,1777841440000,-300.0,0.00010199,2]
[421542360,1777841440000,-300.0,0.00010199,2]
[421542364,1777841440000,-287.9205708,0.00011507,2]
[421542451,1777841446000,-500.0,0.00016238,2]
[421542448,1777841446000,-375.76074495,0.00015507,2]
[421542449,1777841446000,-160.0,0.00015553,2]
[421542450,1777841446000,-160.9932998,0.00015742,2]
[421542452,1777841446000,-14480.19415085,0.00016276,3]
[421542457,1777841446000,-500.0,0.00016437,2]
[421542456,1777841446000,-500.0,0.00016437,2]
[421542467,1777841446000,-7160.2896,0.00016438,2]
[421542461,1777841446000,-500.0,0.00016437,2]
[421542459,1777841446000,-269.23378171,0.00016437,2]
[421542460,1777841446000,-500.0,0.00016437,2]
[421542446,1777841446000,-202.116395,0.00015068,2]
[421542458,1777841446000,-500.0,0.00016437,2]
[421542468,1777841446000,-500.0,0.00016438,2]
[421542445,1777841446000,-656.21302702,0.00015021,2]
[421542443,1777841446000,-12238.59953507,0.00014675,2]
[421542455,1777841446000,-500.0,0.00016437,2]
[421542454,1777841446000,-164.85034952,0.00016437,2]
[421542444,1777841446000,-13510.07221865,0.00014775,2]
[421542453,1777841446000,-385.433,0.000163,2]
[421542442,1777841446000,-178.61073051,0.00014674,2]
[421542441,1777841446000,-466.35344272,0.00014674,2]
[421542436,1777841446000,-9847.49790325,0.00014475,2]
[421542440,1777841446000,-610.13934417,0.00014674,2]
[421542435,1777841446000,-656.21302709,0.00014375,2]
[421542437,1777841446000,-9997.0049193,0.00014575,2]
[421542438,1777841446000,-3546.32354957,0.00014575,2]
[421542439,1777841446000,-500.0,0.00014674,2]
[421542434,1777841446000,-5820.45166387,0.00014275,2]
[421542465,1777841446000,-500.0,0.00016437,2]
[421542447,1777841446000,-822.0,0.00015131,2]
[421542466,1777841446000,-500.0,0.00016437,2]
[421542476,1777841446000,-1961.33,0.00016438,2]
[421542464,1777841446000,-442.71184302,0.00016437,2]
[421542463,1777841446000,-500.0,0.00016437,2]
[421542509,1777841446000,-500.0,0.00016438,2]
[421542510,1777841446000,-500.0,0.00016438,2]
[421542492,1777841446000,-500.0,0.00016438,2]
[421542507,1777841446000,-500.0,0.00016438,2]
[421542494,1777841446000,-906.77,0.00016438,2]
[421542490,1777841446000,-500.0,0.00016438,2]
[421542486,1777841446000,-500.0,0.00016438,2]
[421542504,1777841446000,-500.0,0.00016438,2]
[421542505,1777841446000,-509.05,0.00016438,2]
[421542506,1777841446000,-500.0,0.00016438,2]
[421542484,1777841446000,-500.0,0.00016438,2]
[421542488,1777841446000,-500.0,0.00016438,2]
[421542502,1777841446000,-500.0,0.00016438,2]
[421542500,1777841446000,-500.0,0.00016438,2]
[421542508,1777841446000,-2550.28,0.00016438,2]
[421542496,1777841446000,-500.0,0.00016438,2]
[421542498,1777841446000,-500.0,0.00016438,2]
[421542470,1777841446000,-500.0,0.00016438,2]
[421542471,1777841446000,-822.77,0.00016438,2]
[421542473,1777841446000,-500.0,0.00016438,2]
[421542472,1777841446000,-500.0,0.00016438,2]
[421542481,1777841446000,-891.74,0.00016438,2]
[421542469,1777841446000,-500.0,0.00016438,2]
[421542483,1777841446000,-500.0,0.00016438,2]
[421542477,1777841446000,-500.0,0.00016438,2]
[421542478,1777841446000,-500.0,0.00016438,2]
[421542462,1777841446000,-500.0,0.00016437,2]
[421542475,1777841446000,-500.0,0.00016438,2]
[421542480,1777841446000,-785.34,0.00016438,2]
[421542474,1777841446000,-640.22,0.00016438,2]
[421542549,1777841447000,-500.0,0.00016438,2]
[421542551,1777841447000,-500.0,0.00016438,2]
[421542540,1777841447000,-500.0,0.00016438,2]
[421542542,1777841447000,-500.0,0.00016438,2]
[421542541,1777841447000,-500.0,0.00016438,2]
[421542548,1777841447000,-500.0,0.00016438,2]
[421542544,1777841447000,-1010.83,0.00016438,2]
[421542547,1777841447000,-500.0,0.00016438,2]
[421542543,1777841447000,-500.0,0.00016438,2]
[421542546,1777841447000,-500.0,0.00016438,2]
[421542550,1777841447000,-500.0,0.00016438,2]
[421542545,1777841447000,-500.0,0.00016438,2]
[421542558,1777841447000,-613.01,0.00016438,2]
[421542553,1777841447000,-1243.41,0.00016438,2]
[421542552,1777841447000,-153.07664,0.00016438,2]
[421542557,1777841447000,-977.15,0.00016438,2]
[421542556,1777841447000,-500.0,0.00016438,2]
[421542554,1777841447000,-500.0,0.00016438,2]
[421542560,1777841447000,-739.2,0.00016438,2]
[421542559,1777841447000,-2705.07,0.00016438,2]
[421542562,1777841447000,-734.79,0.00016438,2]
[421542563,1777841447000,-500.0,0.00016438,2]
[421542565,1777841447000,-500.0,0.00016438,2]
[421542539,1777841447000,-500.0,0.00016438,2]
[421542567,1777841447000,-2216.0,0.00016438,2]
[421542561,1777841447000,-500.0,0.00016438,2]
[421542538,1777841447000,-500.0,0.00016438,2]
[421542523,1777841447000,-500.0,0.00016438,2]
[421542534,1777841447000,-746.68,0.00016438,2]
[421542566,1777841447000,-500.0,0.00016438,2]
[421542519,1777841447000,-948.4,0.00016438,2]
[421542520,1777841447000,-500.0,0.00016438,2]
[421542512,1777841447000,-500.0,0.00016438,2]
[421542511,1777841447000,-500.0,0.00016438,2]
[421542513,1777841447000,-531.93,0.00016438,2]
[421542518,1777841447000,-500.0,0.00016438,2]
[421542515,1777841447000,-816.74,0.00016438,2]
[421542514,1777841447000,-750.13,0.00016438,2]
[421542516,1777841447000,-500.0,0.00016438,2]
[421542517,1777841447000,-805.09,0.00016438,2]
[421542521,1777841447000,-500.0,0.00016438,2]
[421542522,1777841447000,-500.0,0.00016438,2]
[421542524,1777841447000,-739.83,0.00016438,2]
[421542526,1777841447000,-803.43,0.00016438,2]
[421542525,1777841447000,-500.0,0.00016438,2]
[421542528,1777841447000,-908.04,0.00016438,2]
[421542527,1777841447000,-500.0,0.00016438,2]
[421542530,1777841447000,-1342.05,0.00016438,2]
[421542529,1777841447000,-803.32,0.00016438,2]
[421542535,1777841447000,-500.0,0.00016438,2]
[421542533,1777841447000,-500.0,0.00016438,2]
[421542536,1777841447000,-1252.65,0.00016438,2]
[421542531,1777841447000,-1000.0,0.00016438,2]
[421542532,1777841447000,-500.0,0.00016438,2]
[421542537,1777841447000,-500.0,0.00016438,2]
[421542573,1777841447000,-582.17084461,0.00016438,2]
[421542555,1777841447000,-500.0,0.00016438,2]
[421542564,1777841447000,-2481.45,0.00016438,2]
[421542600,1777841447000,-500.0,0.00016438,2]
[421542610,1777841447000,-1222.97,0.00016438,2]
[421542609,1777841447000,-500.0,0.00016438,2]
[421542608,1777841447000,-449.37,0.00016438,2]
[421542599,1777841447000,-521.41,0.00016438,2]
[421542606,1777841447000,-500.0,0.00016438,2]
[421542603,1777841447000,-500.0,0.00016438,2]
[421542607,1777841447000,-1258.81,0.00016438,2]
[421542604,1777841447000,-632.6,0.00016438,2]
[421542605,1777841447000,-500.0,0.00016438,2]
[421542602,1777841447000,-2864.87,0.00016438,2]
[421542601,1777841447000,-500.0,0.00016438,2]
[421542598,1777841447000,-500.0,0.00016438,2]
[421542616,1777841447000,-861.05,0.00016438,2]
[421542614,1777841447000,-1450.03,0.00016438,2]
[421542615,1777841447000,-500.0,0.00016438,2]
[421542612,1777841447000,-500.0,0.00016438,2]
[421542617,1777841447000,-1009.48,0.00016438,2]
[421542622,1777841447000,-517.0849624,0.00016438,2]
[421542623,1777841447000,-595.52,0.00016438,2]
[421542618,1777841447000,-286.40531412,0.00016438,2]
[421542619,1777841447000,-428.30592142,0.00016438,2]
[421542621,1777841447000,-641.93,0.00016438,2]
[421542620,1777841447000,-500.0,0.00016438,2]
[421542625,1777841447000,-5170.05,0.00016438,2]
[421542570,1777841447000,-500.0,0.00016438,2]
[421542613,1777841447000,-1059.75,0.00016438,2]
[421542591,1777841447000,-500.0,0.00016438,2]
[421542611,1777841447000,-500.0,0.00016438,2]
[421542592,1777841447000,-3486.99,0.00016438,2]
[421542568,1777841447000,-561.89,0.00016438,2]
[421542594,1777841447000,-1157.46,0.00016438,2]
[421542569,1777841447000,-500.0,0.00016438,2]
[421542571,1777841447000,-500.0,0.00016438,2]
[421542572,1777841447000,-727.49,0.00016438,2]
[421542575,1777841447000,-509.94,0.00016438,2]
[421542585,1777841447000,-500.0,0.00016438,2]
[421542624,1777841447000,-187.09899444,0.00016438,2]
[421542581,1777841447000,-500.0,0.00016438,2]
[421542577,1777841447000,-559.24,0.00016438,2]
[421542576,1777841447000,-853.71,0.00016438,2]
[421542578,1777841447000,-500.0,0.00016438,2]
[421542583,1777841447000,-500.0,0.00016438,2]
[421542574,1777841447000,-500.0,0.00016438,2]
[421542587,1777841447000,-1077.42,0.00016438,2]
[421542580,1777841447000,-879.73,0.00016438,2]
[421542582,1777841447000,-500.0,0.00016438,2]